fUST/lending_fUST_20250608
["ID","MTS","AMOUNT","RATE_DAILY","PERIOD"]
[365006269,1749394247028,-440.0,0.00019726,2]
[365006270,1749394247039,-430.0,0.00019726,2]
[365006271,1749394247049,-440.0,0.00019726,2]
[365006272,1749394247059,-440.0,0.00019726,2]
[365006273,1749394247070,-23.64940903,0.00019726,2]
[365006274,1749394247084,-406.35059097,0.00019726,2]
[365006275,1749394247095,-440.0,0.00019726,2]
[365006276,1749394247104,-440.0,0.00019726,2]
[365006277,1749394247114,-440.0,0.00019726,2]
[365006278,1749394247123,-440.0,0.00019726,2]
[365006279,1749394247132,-430.0,0.00019726,2]
[365006280,1749394247142,-440.0,0.00019726,2]
[365006281,1749394247152,-440.0,0.00019726,2]
[365006282,1749394247162,-430.0,0.00019726,2]
[365006283,1749394247176,-440.0,0.00019726,2]
[365006284,1749394247185,-430.0,0.00019726,2]
[365006285,1749394247195,-191.56858156,0.00019726,2]
[365006286,1749394247206,-430.0,0.00019726,2]
[365006287,1749394247216,-430.0,0.00019726,2]
[365006288,1749394247226,-440.0,0.00019726,2]
[365006289,1749394247236,-440.0,0.00019726,2]
[365006290,1749394247247,-440.0,0.00019726,2]
[365006291,1749394247256,-440.0,0.00019726,2]
[365006292,1749394247266,-258.67900555,0.00019726,2]
[365006293,1749394247275,-430.0,0.00019726,2]
[365006294,1749394247285,-440.0,0.00019726,2]
[365006295,1749394247295,-420.0,0.00019726,2]
[365006296,1749394247304,-440.0,0.00019726,2]
[365006297,1749394247314,-430.0,0.00019726,2]
[365006298,1749394247323,-430.0,0.00019726,2]
[365006299,1749394247333,-440.0,0.00019726,2]
[365006300,1749394247343,-440.0,0.00019726,2]
[365006301,1749394247353,-430.0,0.00019726,2]
[365006302,1749394247362,-440.0,0.00019726,2]
[365006303,1749394247372,-430.0,0.00019726,2]
[365006304,1749394247381,-410.0,0.00019726,2]
[365006305,1749394247392,-440.0,0.00019726,2]
[365006306,1749394247402,-440.0,0.00019726,2]
[365006307,1749394247412,-440.0,0.00019726,2]
[365006308,1749394247421,-410.0,0.00019726,2]
[365006309,1749394247431,-420.0,0.00019726,2]
[365006310,1749394247440,-440.0,0.00019726,2]
[365006311,1749394247450,-420.0,0.00019726,2]
[365006312,1749394247460,-370.172726,0.00019726,2]
[365006313,1749394247470,-420.0,0.00019726,2]
[365006314,1749394247480,-259.62444442,0.00019726,2]
[365006315,1749394247490,-410.0,0.00019726,2]
[365006316,1749394247499,-430.0,0.00019726,2]
[365006317,1749394247510,-461.09075428,0.00019726,2]
[365006318,1749394247520,-430.0,0.00019726,2]
[365006319,1749394247530,-424.05625868,0.00019726,2]
[365006320,1749394247540,-440.0,0.00019726,2]
[365006321,1749394247550,-410.0,0.00019726,2]
[365006322,1749394247560,-430.0,0.00019726,2]
[365006323,1749394247570,-420.0,0.00019726,2]
[365006324,1749394247580,-430.0,0.00019726,2]
[365006325,1749394247589,-440.0,0.00019726,2]
[365006326,1749394247599,-497.14,0.00019726,2]
[365006327,1749394247608,-440.0,0.00019726,2]
[365006328,1749394247619,-440.0,0.00019726,2]
[365006329,1749394247629,-235.41406496,0.00019726,2]
[365006330,1749394247638,-440.0,0.00019726,2]
[365006331,1749394247648,-440.0,0.00019726,2]
[365006332,1749394247658,-440.0,0.00019726,2]
[365006333,1749394247668,-440.0,0.00019726,2]
[365006334,1749394247678,-440.0,0.00019726,2]
[365006335,1749394247688,-366.00348126,0.00019726,2]
[365006336,1749394247698,-440.0,0.00019726,2]
[365006337,1749394247708,-440.0,0.00019726,2]
[365006338,1749394247718,-430.0,0.00019726,2]
[365006339,1749394247727,-484.08,0.00019726,2]
[365006340,1749394247736,-440.0,0.00019726,2]
[365006341,1749394247748,-440.0,0.00019726,2]
[365006342,1749394247760,-449.10777376,0.00019726,2]
[365006343,1749394247769,-430.0,0.00019726,2]
[365006344,1749394247779,-430.0,0.00019726,2]
[365006345,1749394247789,-551.36,0.00019726,2]
[365006346,1749394247798,-432.04228063,0.00019726,2]
[365006347,1749394247808,-440.0,0.00019726,2]
[365006348,1749394247817,-440.0,0.00019726,2]
[365006349,1749394247829,-411.06734168,0.00019726,2]
[365006350,1749394247841,-430.0,0.00019726,2]
[365006351,1749394247852,-440.0,0.00019726,2]
[365006352,1749394247862,-440.0,0.00019726,2]
[365006353,1749394247871,-440.0,0.00019726,2]
[365006354,1749394247882,-440.0,0.00019726,2]
[365006355,1749394247893,-440.0,0.00019726,2]
[365006356,1749394247903,-1708.26,0.00019726,2]
[365006357,1749394247913,-427.11848685,0.00019726,2]
[365006358,1749394247924,-430.0,0.00019726,2]
[365006359,1749394247933,-440.0,0.00019726,2]
[365006360,1749394247943,-430.0,0.00019726,2]
[365006361,1749394247953,-430.0,0.00019726,2]
[365006362,1749394247964,-440.0,0.00019726,2]
[365006363,1749394247975,-430.0,0.00019726,2]
[365006364,1749394247985,-517.30722969,0.00019726,2]
[365006365,1749394247997,-547.83,0.00019726,2]
[365006366,1749394248010,-170.63763326,0.00019726,2]
[365006367,1749394248019,-570.77394187,0.00019726,2]
[365006368,1749394248029,-440.0,0.00019726,2]
[365006369,1749394248039,-440.0,0.00019726,2]
[365006370,1749394248050,-440.0,0.00019726,2]
[365006371,1749394248059,-440.0,0.00019726,2]
[365006372,1749394248158,-440.0,0.00019726,2]
[365006373,1749394248171,-471.27,0.00019726,2]
[365006374,1749394248181,-430.0,0.00019726,2]
[365006375,1749394248192,-440.0,0.00019726,2]
[365006376,1749394248201,-440.0,0.00019726,2]
[365006377,1749394248212,-506.92,0.00019726,2]
[365006378,1749394248222,-448.33,0.00019726,2]
[365006379,1749394248231,-440.0,0.00019726,2]
[365006380,1749394248242,-440.0,0.00019726,2]
[365006381,1749394248252,-440.0,0.00019726,2]
[365006382,1749394248262,-440.0,0.00019726,2]
[365006383,1749394248271,-440.0,0.00019726,2]
[365006384,1749394248281,-440.0,0.00019726,2]
[365006385,1749394248291,-574.52577775,0.00019726,2]
[365006386,1749394248301,-231.80368131,0.00019726,2]
[365006387,1749394248311,-249.04781292,0.00019726,2]
[365006388,1749394248321,-498.29,0.00019726,2]
[365006389,1749394248330,-410.0,0.00019726,2]
[365006390,1749394248340,-177.60360734,0.00019726,2]
[365006391,1749394248349,-430.0,0.00019726,2]
[365006392,1749394248359,-440.0,0.00019726,2]
[365006393,1749394248368,-440.0,0.00019726,2]
[365006394,1749394248379,-440.0,0.00019726,2]
[365006395,1749394248389,-430.0,0.00019726,2]
[365006396,1749394248399,-440.0,0.00019726,2]
[365006397,1749394248409,-500.8,0.00019726,2]
[365006398,1749394248419,-440.0,0.00019726,2]
[365006399,1749394248428,-547.90146351,0.00019726,2]
[365006400,1749394248438,-440.0,0.00019726,2]
[365006401,1749394248449,-528.95372577,0.00019726,2]
[365006402,1749394248458,-440.0,0.00019726,2]
[365006403,1749394248469,-1207.59,0.00019726,2]
[365006404,1749394248478,-434.60090645,0.00019726,2]
[365006405,1749394248488,-440.0,0.00019726,2]
[365006406,1749394248498,-1037.75,0.00019726,2]
[365006407,1749394248508,-430.0,0.00019726,2]
[365006408,1749394248517,-391.09908079,0.00019726,2]
[365006409,1749394248528,-1656.91,0.00019726,2]
[365006410,1749394248538,-440.0,0.00019726,2]
[365006411,1749394248548,-440.0,0.00019726,2]
[365006412,1749394248558,-440.0,0.00019726,2]
[365006413,1749394248568,-440.0,0.00019726,2]
[365006414,1749394248577,-440.0,0.00019726,2]
[365006415,1749394248587,-1761.21,0.00019726,2]
[365006416,1749394248597,-440.0,0.00019726,2]
[365006417,1749394248606,-516.79,0.00019726,2]
[365006418,1749394248615,-440.0,0.00019726,2]
[365006419,1749394248625,-1166.63,0.00019726,2]
[365006420,1749394248635,-440.0,0.00019726,2]
[365006421,1749394248644,-430.0,0.00019726,2]
[365006422,1749394248653,-203.87001257,0.00019726,2]
[365006423,1749394248663,-440.0,0.00019726,2]
[365006424,1749394248673,-440.0,0.00019726,2]
[365006425,1749394248682,-483.93835613,0.00019726,2]
[365006426,1749394248691,-440.0,0.00019726,2]
[365006427,1749394248701,-421.35883628,0.00019726,2]
[365006428,1749394248710,-440.0,0.00019726,2]
[365006429,1749394248719,-440.0,0.00019726,2]
[365006430,1749394248729,-440.0,0.00019726,2]
[365006431,1749394248738,-440.0,0.00019726,2]
[365006432,1749394248748,-301.73722272,0.00019726,2]
[365006433,1749394248758,-440.0,0.00019726,2]
[365006434,1749394248767,-440.0,0.00019726,2]
[365006435,1749394248777,-440.0,0.00019726,2]
[365006436,1749394248787,-995.82,0.00019726,2]
[365006437,1749394248796,-429.43214443,0.00019726,2]
[365006438,1749394248806,-430.0,0.00019726,2]
[365006439,1749394248815,-638.24,0.00019726,2]
[365006440,1749394248825,-440.0,0.00019726,2]
[365006441,1749394248834,-300.36280278,0.00019726,2]
[365006442,1749394248844,-440.0,0.00019726,2]
[365006443,1749394248853,-440.0,0.00019726,2]
[365006444,1749394248863,-1379.33,0.00019726,2]
[365006445,1749394248872,-440.0,0.00019726,2]
[365006446,1749394248881,-440.0,0.00019726,2]
[365006447,1749394248891,-433.83210481,0.00019726,2]
[365006448,1749394248901,-440.0,0.00019726,2]
[365006449,1749394248910,-440.0,0.00019726,2]
[365006450,1749394248920,-430.0,0.00019726,2]
[365006451,1749394248930,-440.0,0.00019726,2]
[365006452,1749394248940,-440.0,0.00019726,2]
[365006453,1749394248949,-440.0,0.00019726,2]
[365006454,1749394248958,-403.19832708,0.00019726,2]
[365006455,1749394248968,-616.33,0.00019726,2]
[365006456,1749394248977,-510.59,0.00019726,2]
[365006457,1749394248987,-440.0,0.00019726,2]
[365006458,1749394248996,-440.0,0.00019726,2]
[365006459,1749394249005,-180.0,0.00019726,2]
[365006460,1749394249015,-290.53290035,0.00019734,2]
[365006461,1749394249025,-205.94844485,0.0002,2]
[365006462,1749394249035,-440.0,0.0002,2]
[365006463,1749394249044,-497.14,0.0002,2]
[365006464,1749394249053,-440.0,0.0002,2]
[365006465,1749394249063,-1000.0,0.0002,3]
[365006466,1749394249073,-440.0,0.0002,2]
[365006467,1749394249083,-484.08,0.0002,2]
[365006468,1749394249092,-440.0,0.0002,2]
[365006469,1749394249102,-551.36,0.0002,2]
[365006470,1749394249111,-440.0,0.0002,2]
[365006471,1749394249122,-1708.26,0.0002,2]
[365006472,1749394249131,-547.83,0.0002,2]
[365006473,1749394249141,-440.0,0.0002,2]
[365006474,1749394249150,-440.0,0.0002,2]
[365006475,1749394249160,-471.27,0.0002,2]
[365006476,1749394249172,-506.92,0.0002,2]
[365006477,1749394249182,-448.33,0.0002,2]
[365006478,1749394249192,-440.0,0.0002,2]
[365006479,1749394249202,-498.29,0.0002,2]
[365006480,1749394249212,-440.0,0.0002,2]
[365006481,1749394249221,-440.0,0.0002,2]
[365006482,1749394249231,-440.0,0.0002,2]
[365006483,1749394249240,-1207.59,0.0002,2]
[365006484,1749394249250,-1037.75,0.0002,2]
[365006485,1749394249259,-1656.91,0.0002,2]
[365006486,1749394249269,-440.0,0.0002,2]
[365006487,1749394249278,-1761.21,0.0002,2]
[365006488,1749394249288,-516.79,0.0002,2]
[365006489,1749394249297,-1166.63,0.0002,2]
[365006490,1749394249307,-440.0,0.0002,2]
[365006491,1749394249317,-440.0,0.0002,2]
[365006492,1749394249327,-440.0,0.0002,2]
[365006493,1749394249337,-440.0,0.0002,2]
[365006494,1749394249346,-995.82,0.0002,2]
[365006495,1749394249355,-638.24,0.0002,2]
[365006496,1749394249365,-440.0,0.0002,2]
[365006497,1749394249374,-1379.33,0.0002,2]
[365006498,1749394249384,-440.0,0.0002,2]
[365006499,1749394249394,-440.0,0.0002,2]
[365006500,1749394249404,-616.33,0.0002,2]
[365006501,1749394249414,-510.59,0.0002,2]
[365006502,1749394249423,-440.0,0.0002,2]
[365006503,1749394249435,-423.98131849,0.00020172,2]
[365006504,1749394249445,-842.5625,0.00020172,2]
[365006505,1749394249455,-315.11541396,0.00020174,2]
[365006506,1749394249465,-440.0,0.00020273,2]
[365006507,1749394249475,-497.14,0.00020273,2]
[365006508,1749394249485,-440.0,0.00020273,2]
[365006509,1749394249496,-427.60622184,0.00020273,2]
[365006510,1749394249507,-484.08,0.00020273,2]
[365006511,1749394249516,-440.0,0.00020273,2]
[365006512,1749394249526,-551.36,0.00020273,2]
[365006513,1749394249536,-440.0,0.00020273,2]
[365006514,1749394249546,-1708.26,0.00020273,2]
[365006515,1749394249557,-547.83,0.00020273,2]
[365006516,1749394249567,-440.0,0.00020273,2]
[365006517,1749394249577,-440.0,0.00020273,2]
[365006518,1749394249587,-471.27,0.00020273,2]
[365006519,1749394249596,-506.92,0.00020273,2]
[365006520,1749394249606,-448.33,0.00020273,2]
[365006521,1749394249691,-440.0,0.00020273,2]
[365006522,1749394249703,-498.29,0.00020273,2]
[365006523,1749394249713,-440.0,0.00020273,2]
[365006524,1749394249724,-477.13583775,0.00020273,2]
[365006525,1749394249734,-440.0,0.00020273,2]
[365006526,1749394249744,-1207.59,0.00020273,2]
[365006527,1749394249754,-1037.75,0.00020273,2]
[365006528,1749394249764,-1656.91,0.00020273,2]
[365006529,1749394249775,-440.0,0.00020273,2]
[365006530,1749394249785,-1761.21,0.00020273,2]
[365006531,1749394249795,-516.79,0.00020273,2]
[365006532,1749394249806,-1166.63,0.00020273,2]
[365006533,1749394249816,-440.0,0.00020273,2]
[365006534,1749394249827,-440.0,0.00020273,2]
[365006535,1749394249838,-440.0,0.00020273,2]
[365006536,1749394249849,-440.0,0.00020273,2]
[365006537,1749394249858,-995.82,0.00020273,2]
[365006538,1749394249869,-638.24,0.00020273,2]
[365006539,1749394249880,-440.0,0.00020273,2]
[365006540,1749394249891,-1379.33,0.00020273,2]
[365006541,1749394249904,-440.0,0.00020273,2]
[365006542,1749394249914,-440.0,0.00020273,2]
[365006543,1749394249924,-616.33,0.00020273,2]
[365006544,1749394249934,-510.59,0.00020273,2]
[365006545,1749394249944,-440.0,0.00020273,2]
[365006546,1749394249955,-4000.0,0.00020344,4]
[365006547,1749394249966,-440.0,0.00020547,2]
[365006548,1749394249976,-497.14,0.00020547,2]
[365006549,1749394249987,-440.0,0.00020547,2]
[365006550,1749394249996,-484.08,0.00020547,2]
[365006551,1749394250006,-440.0,0.00020547,2]
[365006552,1749394250016,-551.36,0.00020547,2]
[365006553,1749394250025,-440.0,0.00020547,2]
[365006554,1749394250035,-1708.26,0.00020547,2]
[365006555,1749394250046,-547.83,0.00020547,2]
[365006556,1749394250055,-440.0,0.00020547,2]
[365006557,1749394250065,-440.0,0.00020547,2]
[365006558,1749394250076,-471.27,0.00020547,2]
[365006559,1749394250085,-506.92,0.00020547,2]
[365006560,1749394250095,-448.33,0.00020547,2]
[365006561,1749394250105,-440.0,0.00020547,2]
[365006562,1749394250114,-498.29,0.00020547,2]
[365006563,1749394250124,-440.0,0.00020547,2]
[365006564,1749394250134,-218.72,0.00020547,2]
[365006565,1749394250144,-1207.59,0.00020547,2]
[365006566,1749394250154,-1037.75,0.00020547,2]
[365006567,1749394250164,-1656.91,0.00020547,2]
[365006568,1749394250179,-440.0,0.00020547,2]
[365006569,1749394250188,-1761.21,0.00020547,2]
[365006570,1749394250199,-516.79,0.00020547,2]
[365006571,1749394250209,-1166.63,0.00020547,2]
[365006572,1749394250220,-440.0,0.00020547,2]
[365006573,1749394250230,-440.0,0.00020547,2]
[365006574,1749394250240,-440.0,0.00020547,2]
[365006575,1749394250250,-440.0,0.00020547,2]
[365006576,1749394250259,-995.82,0.00020547,2]
[365006577,1749394250269,-638.24,0.00020547,2]
[365006578,1749394250279,-411.13942422,0.00020547,2]
[365006579,1749394250288,-1379.33,0.00020547,2]
[365006580,1749394250298,-440.0,0.00020547,2]
[365006581,1749394250308,-440.0,0.00020547,2]
[365006582,1749394250318,-616.33,0.00020547,2]
[365006583,1749394250327,-510.59,0.00020547,2]
[365006584,1749394250337,-440.0,0.00020547,2]
[365006585,1749394250347,-32720.89,0.000206,2]
[365006586,1749394250358,-833.39,0.000206,2]
[365006587,1749394250368,-1774.45,0.000206,2]
[365006588,1749394250378,-800.0,0.00020821,2]
[365006589,1749394250388,-310.0,0.00020821,2]
[365006590,1749394250398,-497.14,0.00020821,2]
[365006591,1749394250408,-440.0,0.00020821,2]
[365006592,1749394250418,-484.08,0.00020821,2]
[365006593,1749394250428,-440.0,0.00020821,2]
[365006594,1749394250437,-551.36,0.00020821,2]
[365006595,1749394250447,-440.0,0.00020821,2]
[365006596,1749394250458,-1708.26,0.00020821,2]
[365006597,1749394250468,-547.83,0.00020821,2]
[365006598,1749394250478,-440.0,0.00020821,2]
[365006599,1749394250488,-440.0,0.00020821,2]
[365006600,1749394250498,-471.27,0.00020821,2]
[365006601,1749394250508,-506.92,0.00020821,2]
[365006602,1749394250517,-448.33,0.00020821,2]
[365006603,1749394250527,-440.0,0.00020821,2]
[365006604,1749394250537,-498.29,0.00020821,2]
[365006605,1749394250547,-440.0,0.00020821,2]
[365006606,1749394250557,-1207.59,0.00020821,2]
[365006607,1749394250566,-1037.75,0.00020821,2]
[365006608,1749394250576,-1656.91,0.00020821,2]
[365006609,1749394250586,-440.0,0.00020821,2]
[365006610,1749394250595,-1761.21,0.00020821,2]
[365006611,1749394250607,-516.79,0.00020821,2]
[365006612,1749394250616,-1166.63,0.00020821,2]
[365006613,1749394250626,-440.0,0.00020821,2]
[365006614,1749394250636,-440.0,0.00020821,2]
[365006615,1749394250646,-440.0,0.00020821,2]
[365006616,1749394250656,-440.0,0.00020821,2]
[365006617,1749394250666,-995.82,0.00020821,2]
[365006618,1749394250675,-638.24,0.00020821,2]
[365006619,1749394250686,-1379.33,0.00020821,2]
[365006620,1749394250696,-440.0,0.00020821,2]
[365006621,1749394250706,-440.0,0.00020821,2]
[365006622,1749394250716,-616.33,0.00020821,2]
[365006623,1749394250726,-510.59,0.00020821,2]
[365006624,1749394250736,-440.0,0.00020821,2]
[365006625,1749394250746,-420.0,0.00020884,2]
[365006626,1749394250756,-420.0,0.00020885,2]
[365006627,1749394250765,-500.0,0.00020943,2]
[365006628,1749394250775,-600.0,0.00020943,2]
[365006629,1749394250784,-433.57904682,0.00020943,2]
[365006630,1749394250794,-497.14,0.00021095,2]
[365006631,1749394250804,-440.0,0.00021095,2]
[365006632,1749394250814,-484.08,0.00021095,2]
[365006633,1749394250823,-440.0,0.00021095,2]
[365006634,1749394250833,-551.36,0.00021095,2]
[365006635,1749394250843,-440.0,0.00021095,2]
[365006636,1749394250853,-1708.26,0.00021095,2]
[365006637,1749394250862,-547.83,0.00021095,2]
[365006638,1749394250872,-440.0,0.00021095,2]
[365006639,1749394250881,-440.0,0.00021095,2]
[365006640,1749394250891,-471.27,0.00021095,2]
[365006641,1749394250901,-506.92,0.00021095,2]
[365006642,1749394250911,-448.33,0.00021095,2]
[365006643,1749394250920,-440.0,0.00021095,2]
[365006644,1749394250930,-498.29,0.00021095,2]
[365006645,1749394250939,-440.0,0.00021095,2]
[365006646,1749394250949,-1207.59,0.00021095,2]
[365006647,1749394250959,-1037.75,0.00021095,2]
[365006648,1749394250968,-1656.91,0.00021095,2]
[365006649,1749394250978,-440.0,0.00021095,2]
[365006650,1749394250988,-1761.21,0.00021095,2]
[365006651,1749394250998,-516.79,0.00021095,2]
[365006652,1749394251008,-1166.63,0.00021095,2]
[365006653,1749394251019,-440.0,0.00021095,2]
[365006654,1749394251029,-440.0,0.00021095,2]
[365006655,1749394251039,-440.0,0.00021095,2]
[365006656,1749394251049,-440.0,0.00021095,2]
[365006657,1749394251059,-995.82,0.00021095,2]
[365006658,1749394251145,-638.24,0.00021095,2]
[365006659,1749394251162,-1379.33,0.00021095,2]
[365006660,1749394251174,-440.0,0.00021095,2]
[365006661,1749394251185,-440.0,0.00021095,2]
[365006662,1749394251195,-616.33,0.00021095,2]
[365006663,1749394251205,-510.59,0.00021095,2]
[365006664,1749394251217,-440.0,0.00021095,2]
[365006665,1749394251228,-554.86,0.00021319,2]
[365006666,1749394251238,-497.14,0.00021369,2]
[365006667,1749394251250,-440.0,0.00021369,2]
[365006668,1749394251262,-484.08,0.00021369,2]
[365006669,1749394251271,-440.0,0.00021369,2]
[365006670,1749394251282,-551.36,0.00021369,2]
[365006671,1749394251292,-440.0,0.00021369,2]
[365006672,1749394251302,-1708.26,0.00021369,2]
[365006673,1749394251312,-547.83,0.00021369,2]
[365006674,1749394251322,-440.0,0.00021369,2]
[365006675,1749394251332,-440.0,0.00021369,2]
[365006676,1749394251342,-471.27,0.00021369,2]
[365006677,1749394251352,-506.92,0.00021369,2]
[365006678,1749394251362,-448.33,0.00021369,2]
[365006679,1749394251372,-440.0,0.00021369,2]
[365006680,1749394251382,-498.29,0.00021369,2]
[365006681,1749394251392,-440.0,0.00021369,2]
[365006682,1749394251402,-1207.59,0.00021369,2]
[365006683,1749394251413,-1037.75,0.00021369,2]
[365006684,1749394251423,-1656.91,0.00021369,2]
[365006685,1749394251432,-440.0,0.00021369,2]
[365006686,1749394251442,-1761.21,0.00021369,2]
[365006687,1749394251453,-516.79,0.00021369,2]
[365006688,1749394251463,-1166.63,0.00021369,2]
[365006689,1749394251474,-440.0,0.00021369,2]
[365006690,1749394251484,-440.0,0.00021369,2]
[365006691,1749394251494,-440.0,0.00021369,2]
[365006692,1749394251505,-527.37368484,0.00021369,2]
[365006693,1749394251515,-995.82,0.00021369,2]
[365006694,1749394251525,-638.24,0.00021369,2]
[365006695,1749394251535,-1379.33,0.00021369,2]
[365006696,1749394251545,-440.0,0.00021369,2]
[365006697,1749394251557,-440.0,0.00021369,2]
[365006698,1749394251567,-616.33,0.00021369,2]
[365006699,1749394251578,-510.59,0.00021369,2]
[365006700,1749394251588,-440.0,0.00021369,2]
[365006701,1749394251599,-1000.0,0.00021491,2]
[365006702,1749394251609,-1200.0,0.00021491,2]
[365006703,1749394251619,-500.0,0.0002158,2]
[365006704,1749394251630,-150.0,0.00021629,30]
[365006705,1749394251641,-497.14,0.00021643,2]
[365006706,1749394251651,-328.92,0.00021643,2]
[365006707,1749394251661,-484.08,0.00021643,2]
[365006708,1749394251672,-440.0,0.00021643,2]
[365006709,1749394251682,-551.36,0.00021643,2]
[365006710,1749394251691,-440.0,0.00021643,2]
[365006711,1749394251702,-1708.26,0.00021643,2]
[365006712,1749394251712,-547.83,0.00021643,2]
[365006713,1749394251722,-440.0,0.00021643,2]
[365006714,1749394251732,-440.0,0.00021643,2]
[365006715,1749394251742,-471.27,0.00021643,2]
[365006716,1749394251753,-506.92,0.00021643,2]
[365006717,1749394251763,-448.33,0.00021643,2]
[365006718,1749394251775,-440.0,0.00021643,2]
[365006719,1749394251784,-498.29,0.00021643,2]
[365006720,1749394251794,-440.0,0.00021643,2]
[365006721,1749394251804,-1207.59,0.00021643,2]
[365006722,1749394251816,-1037.75,0.00021643,2]
[365006723,1749394251828,-1656.91,0.00021643,2]
[365006724,1749394251838,-440.0,0.00021643,2]
[365006725,1749394251848,-1761.21,0.00021643,2]
[365006726,1749394251858,-516.79,0.00021643,2]
[365006727,1749394251868,-1166.63,0.00021643,2]
[365006728,1749394251877,-440.0,0.00021643,2]
[365006729,1749394251888,-440.0,0.00021643,2]
[365006730,1749394251899,-440.0,0.00021643,2]
[365006731,1749394251909,-995.82,0.00021643,2]
[365006732,1749394251920,-638.24,0.00021643,2]
[365006733,1749394251931,-1379.33,0.00021643,2]
[365006734,1749394251940,-440.0,0.00021643,2]
[365006735,1749394251952,-440.0,0.00021643,2]
[365006736,1749394251961,-616.33,0.00021643,2]
[365006737,1749394251971,-510.59,0.00021643,2]
[365006738,1749394251981,-440.0,0.00021643,2]
[365006739,1749394251991,-800.0,0.00021917,2]
[365006740,1749394252001,-497.14,0.00021917,2]
[365006741,1749394252010,-484.08,0.00021917,2]
[365006742,1749394252020,-440.0,0.00021917,2]
[365006743,1749394252030,-551.36,0.00021917,2]
[365006744,1749394252039,-440.0,0.00021917,2]
[365006745,1749394252049,-1708.26,0.00021917,2]
[365006746,1749394252059,-547.83,0.00021917,2]
[365006747,1749394252068,-440.0,0.00021917,2]
[365006748,1749394252078,-440.0,0.00021917,2]
[365006749,1749394252087,-471.27,0.00021917,2]
[365006750,1749394252096,-506.92,0.00021917,2]
[365006751,1749394252106,-448.33,0.00021917,2]
[365006752,1749394252115,-440.0,0.00021917,2]
[365006753,1749394252125,-498.29,0.00021917,2]
[365006754,1749394252134,-440.0,0.00021917,2]
[365006755,1749394252143,-505.23537389,0.00021917,2]
[365006756,1749394252153,-1207.59,0.00021917,2]
[365006757,1749394252162,-1037.75,0.00021917,2]
[365006758,1749394252175,-1656.91,0.00021917,2]
[365006759,1749394252184,-440.0,0.00021917,2]
[365006760,1749394252194,-1761.21,0.00021917,2]
[365006761,1749394252203,-516.79,0.00021917,2]
[365006762,1749394252215,-1166.63,0.00021917,2]
[365006763,1749394252224,-440.0,0.00021917,2]
[365006764,1749394252234,-440.0,0.00021917,2]
[365006765,1749394252247,-151.716069,0.00021917,2]
[365006766,1749394252258,-440.0,0.00021917,2]
[365006767,1749394252267,-151.0,0.00021917,2]
[365006768,1749394252276,-995.82,0.00021917,2]